{"text_format":"3","workbook":"xlsx","n_sheets":1,"sheets":["№1_ДОХОДЫ "],"not_rendered":{"macros":1,"external_links":2,"defined_names":82,"comments":1},"read":"whole","date_system":"1900"}

{"sheet":"№1_ДОХОДЫ ","index":0,"n_rows":158,"n_cols":9,"rows_kept":158,"merged":[[0,2,0,3],[1,2,1,3],[2,2,2,3],[3,2,3,3],[4,2,4,3],[5,2,5,3],[7,1,7,3],[8,1,8,3]]}
[null,null,"Приложение 1                                                                                                                                                                                                                                                     к решению Собрания представителей Среднеканского городского округа                                                                                                                                                                                        \"О внесении изменений в решение Собрания представителей \nСреднеканского городского округа\n«О бюджете муниципального образования                                                                                                                                                      «Среднеканский городской округ» на 2017 год»\nот 30.06.2017 г. № 25"]
[null,null,"Приложение № 1                                                                                                                                                                                                                                                     к решению Собрания представителей Среднеканского городского округа                                                                                                                                                                                        \"О внесении изменений в решение Собрания представителей \nСреднеканского городского округа\n«О бюджете муниципального образования                                                                                                                                                      «Среднеканский городской округ» на 2018 год»\nот 27.12.2018 г. № 48"]
[null,null,"                                                             Приложение № 1"]
[null,null," к решению Собрания представителей "]
[null,null,"                                                          Среднеканского городского округа"]
[null,null,"                                                        от 15.12.2017 г. № 49"]
[]
[null," ПОСТУПЛЕНИЯ ДОХОДОВ В БЮДЖЕТ                                                                       "]
[null," МУНИЦИПАЛЬНОГО ОБРАЗОВАНИЯ \"СРЕДНЕКАНСКИЙ ГОРОДСКОЙ ОКРУГ\" НА 2018 ГОД"]
[{"$nulls":3},"(тыс. руб.)"]
[null,"Код бюджетной классификации","Наименование","Сумма",{"$nulls":3},"налоговые","неналоговые"]
[null,"1",2,3,null,"разница",null,{"$f":"D16+D21+D25+D36+D42","v":{"v":80347.48999999998,"d":"80,347.49"}},{"$f":"D46+D54+D70+D60+D65","v":{"v":7052.9,"d":"7,052.90"}}]
[null,"ВСЕГО:",null,{"v":429293.84870000003,"d":"429,293.85"},{"$f":"E14+E87","v":{"v":400010.10000000003,"d":"400,010.10"}},{"$f":"D13-E13","v":{"v":29283.748699999996,"d":"29,283.75"}}]
[null,"1 00 00000 00 0000 000","НАЛОГОВЫЕ И НЕНАЛОГОВЫЕ ДОХОДЫ",{"v":87400.38999999997,"d":"87,400.39"},{"$f":"E15+E21+E25+E36+E42+E46+E54+E60+E65+E70","v":{"v":83310,"d":"83,310.00"}},{"$f":"D14-E14","v":{"v":4090.3899999999703,"d":"4,090.39"}}]
[null,"1 01 00000 00 0000 000","НАЛОГИ НА ПРИБЫЛЬ, ДОХОДЫ",{"v":68585.47999999998,"d":"68,585.48"},{"$f":"E16","v":{"v":65860,"d":"65,860.00"}},{"v":2725.4799999999814,"d":"2,725.48"}]
[null,"1 01 02000 01 0000 110","Налог на доходы физических лиц",{"v":68585.47999999998,"d":"68,585.48"},{"$f":"SUM(E17:E20)","v":{"v":65860,"d":"65,860.00"}},{"v":2725.4799999999814,"d":"2,725.48"}]
[null,"1 01 02010 01 0000 110","Налог на доходы физических лиц с доходов, источником которых является налоговый агент, за исключением доходов, в отношении которых исчисление и уплата налога осуществляются в соответствии со статьями 227, 227.1 и 228 Налогового кодекса Российской Федерации\n",{"v":67882.47999999998,"d":"67,882.5"},{"$f":"60224+5000","v":{"v":65224,"d":"65,224.0"}},{"v":2658.4799999999814,"d":"2,658.48"}]
[null,"1 01 02020 01 0000 110","Налог на доходы физических лиц с доходов, полученных от осуществления деятельности физическими лицами, зарегистрированными в качестве индивидуальных предпринимателей, нотариусов, занимающихся частной практикой, адвокатов, учредивших адвокатские кабинеты, и других лиц, занимающихся частной практикой в соответствии со статьей 227 Налогового кодекса Российской Федерации",{"v":185,"d":"185.0"},{"v":125,"d":"125.0"},{"v":60,"d":"60.00"}]
[null,"1 01 02030 01 0000 110","Налог на доходы физических лиц с доходов, полученных физическими лицами в соответствии со статьей 228 Налогового кодекса Российской Федерации",11.2,{"v":21,"d":"21.0"},{"v":-9.8,"d":"-9.80"}]
[null,"1 01 02040 01 0000 110","Налог на доходы физических лиц в виде фиксированных авансовых платежей с доходов, полученных физическими лицами, являющимися иностранными гражданами, осуществляющими трудовую деятельность по найму на основании патента в соответствии со статьей 2271 Налогового кодекса Российской Федерации",506.8,{"v":490,"d":"490.0"},{"v":16.80000000000001,"d":"16.80"}]
[null,"1 03 00000 00 0000 000","НАЛОГИ НА ТОВАРЫ (РАБОТЫ,  УСЛУГИ), РЕАЛИЗУЕМЫЕ НА ТЕРРИТОРИИ РОССИЙСКОЙ ФЕДЕРАЦИИ",{"v":5719.09,"d":"5,719.09"},{"$f":"SUM(E22:E24)","v":{"v":4886,"d":"4,886.00"}},{"v":833.0900000000001,"d":"833.09"}]
[null,"1 03 02230 01 0000 110","Доходы от уплаты акцизов на дизельное топливо, подлежащие распределению между бюджетами субъектов Российской Федерации и местными бюджетами с учетом установленных дифференцированных нормативов отчислений в местные бюджеты",{"v":1890.15,"d":"1,890.15"},{"v":1617,"d":"1,617.00"},{"v":273.1500000000001,"d":"273.15"}]
[null,"1 03 02240 01 0000 110","Доходы от уплаты акцизов на моторные масла для дизельных и (или) карбюраторных (инжекторных) двигателей, подлежащие распределению между бюджетами субъектов Российской Федерации и местными бюджетами с учетом установленных дифференцированных нормативов отчислений в местные бюджеты",22.62,{"v":14,"d":"14.00"},{"v":8.620000000000001,"d":"8.62"}]
[null,"1 03 02250 01 0000 110","Доходы от уплаты акцизов на автомобильный бензин, подлежащие распределению между бюджетами субъектов Российской Федерации и местными бюджетами с учетом установленных дифференцированных нормативов отчислений в местные бюджеты",{"v":3806.3199999999997,"d":"3,806.32"},{"v":3255,"d":"3,255.00"},{"v":551.3199999999997,"d":"551.32"}]
[null,"1 05 00000 00 0000 000","НАЛОГИ НА СОВОКУПНЫЙ ДОХОД",{"v":4774.7,"d":"4,774.70"},{"$f":"E26+E31+E34","v":{"v":4988,"d":"4,988.00"}},{"v":-213.30000000000018,"d":"-213.30"}]
[null,"1 05 01000 00 0000 110","Налог, взимаемый в связи с применением упрощенной системы налогообложения",{"v":1161.7,"d":"1,161.70"},{"$f":"SUM(E27:E30)","v":{"v":1375,"d":"1,375.00"}},{"v":-213.29999999999995,"d":"-213.30"}]
[null,"1 05 01011 01 0000 110","Налог, взимаемый с налогоплательщиков, выбравших в качестве объекта налогообложения доходы",{"v":624.9000000000001,"d":"624.90"},{"v":491,"d":"491.00"},{"v":133.9000000000001,"d":"133.90"}]
[null,"1 05 01012 01 0000 110","Налог, взимаемый с налогоплательщиков, выбравших в качестве объекта налогообложения  доходы (за налоговые периоды, истекшие до 1 января 2011 года)",{"v":0,"d":"0.00"},{"v":1,"d":"1.00"},{"v":-1,"d":"-1.00"}]
[null,"1 05 01021 01 0000 110","Налог, взимаемый с налогоплательщиков, выбравших в качестве объекта налогообложения доходы, уменьшенные на величину расходов",{"v":509.8,"d":"509.80"},{"$f":"868-12","v":{"v":856,"d":"856.00"}},{"v":-346.2,"d":"-346.20"}]
[null,"1 05 01050 01 0000 110","Минимальный налог, зачисляемый в бюджеты субъектов Российской Федерации ",{"v":27,"d":"27.00"},{"v":27,"d":"27.00"},{"v":0,"d":"0.00"}]
[null,"1 05 02000 02 0000 110","Единый налог на вмененный доход для отдельных видов деятельности",{"v":3484,"d":"3,484.00"},{"$f":"SUM(E32:E33)","v":{"v":3484,"d":"3,484.00"}},{"v":0,"d":"0.00"}]
[null,"1 05 02010 02 0000 110","Единый налог на вмененный доход для отдельных видов деятельности",{"v":3484,"d":"3,484.00"},{"v":3479,"d":"3,479.00"},{"v":5,"d":"5.00"}]
[null,"1 05 02020 02 0000 110","Единый налог на вмененный доход для отдельных видов деятельности (за налоговые периоды, истекшие до 1 января 2011 года)",{"v":0,"d":"0.00"},{"v":5,"d":"5.00"},{"v":-5,"d":"-5.00"}]
[null,"1 05 03000 01 0000 110","Единый сельскохозяйственный налог",{"v":129,"d":"129.00"},{"$f":"E35","v":{"v":129,"d":"129.00"}},{"v":0,"d":"0.00"}]
[null,"1 05 03010 01 0000 110","Единый сельскохозяйственный налог",{"v":129,"d":"129.00"},{"v":129,"d":"129.00"},{"v":0,"d":"0.00"}]
[null,"1 06 00000 00 0000 000","НАЛОГИ НА ИМУЩЕСТВО",{"v":554.1,"d":"554.10"},{"$f":"E37+E39","v":{"v":998,"d":"998.00"}},{"v":-443.9,"d":"-443.90"}]
[null,"1 06 01000 00 0000 110","Налог на имущество физических лиц",{"v":170.29999999999998,"d":"170.30"},{"$f":"E38","v":{"v":90,"d":"90.00"}},{"v":80.29999999999998,"d":"80.30"}]
[null,"1 06 01020 04 0000 110","Налог на имущество физических лиц, взимаемый по ставкам, применяемым к объектам налогообложения, расположенным в границах городских округов",{"v":170.29999999999998,"d":"170.30"},{"v":90,"d":"90.00"},{"v":80.29999999999998,"d":"80.30"}]
[null,"1 06 06000 00 0000 110","Земельный налог",{"v":383.8,"d":"383.80"},{"$f":"SUM(E40:E41)","v":{"v":908,"d":"908.00"}},{"v":-524.2,"d":"-524.20"}]
[null,"1 06 06032 04 0000 110","Земельный налог с организаций, обладающих земельным участком, расположенным в границах городских округов",{"v":295.1,"d":"295.10"},{"v":554,"d":"554.00"},{"v":-258.9,"d":"-258.90"}]
[null,"1 06 06042 04 0000 110","Земельный налог с физических лиц, обладающих земельным участком, расположенным в границах городских округов",{"v":88.69999999999999,"d":"88.70"},{"v":354,"d":"354.00"},{"v":-265.3,"d":"-265.30"}]
[null,"1 08 00000 00 0000 000","ГОСУДАРСТВЕННАЯ ПОШЛИНА",{"v":714.1199999999999,"d":"714.12"},{"$f":"E43","v":{"v":483,"d":"483.00"}},{"v":231.1199999999999,"d":"231.12"}]
[null,"1 08 03000 01 0000 110","Государственная пошлина по делам, рассматриваемым в судах общей юрисдикции, мировыми судьями",{"v":714.1199999999999,"d":"714.12"},{"$f":"SUM(E44:E45)","v":{"v":483,"d":"483.00"}},{"v":231.1199999999999,"d":"231.12"}]
[null,"1 08 03010 01 0000 110","Государственная пошлина по делам, рассматриваемым в судах общей юрисдикции, мировыми судьями (за исключением Верховного Суда Российской Федерации)",{"v":714.1199999999999,"d":"714.12"},{"v":473,"d":"473.00"},{"v":241.1199999999999,"d":"241.12"}]
[null,"1 08 07150 01 0000 110","Государственная пошлина за выдачу разрешения на установку рекламной конструкции ",{"v":0,"d":"0.00"},{"v":10,"d":"10.00"},{"v":-10,"d":"-10.00"}]
[null,"1 11 00000 00 0000 000","ДОХОДЫ  ОТ  ИСПОЛЬЗОВАНИЯ  ИМУЩЕСТВА, НАХОДЯЩЕГОСЯ  В  ГОСУДАРСТВЕННОЙ   И  МУНИЦИПАЛЬНОЙ  СОБСТВЕННОСТИ",{"v":1577.8999999999999,"d":"1577.90"},{"$f":"E47+E53","v":{"v":1340,"d":"1,340.00"}},{"v":237.89999999999986,"d":"237.90"}]
[null,"1 11 05000 00 0000 120","Доходы, получаемые в виде арендной либо иной платы за передачу в возмездное пользование государственного и муниципального имущества (за исключением имущества бюджетных и автономных учреждений, а также имущества государственных и муниципальных унитарных предприятий, в том числе казенных)",{"v":1577.8999999999999,"d":"1,577.90"},{"$f":"SUM(E48:E51)","v":{"v":1340,"d":"1,340.00"}},{"v":237.89999999999986,"d":"237.90"}]
[null,"1 11 05012 04 0000 120","Доходы, получаемые в виде арендной платы за земельные участки, государственная собственность на которые не разграничена и которые расположены в границах городских округов, а также средства от продажи права на заключение договоров аренды указанных земельных участков",{"v":841.9,"d":"841.90"},{"v":703,"d":"703.00"},{"v":138.89999999999998,"d":"138.90"}]
[null,"1 11 05024 04 0000 120","Доходы, получаемые в виде арендной платы, а также средства от продажи права на заключение договоров аренды за земли, находящиеся в собственности городских округов (за исключением земельных участков муниципальных бюджетных и автономных учреждений)",{"v":0,"d":"0.00"},{"v":0,"d":"0.00"},{"v":0,"d":"0.00"}]
[null,"1 11 05034 04 0000 120","Доходы от сдачи в аренду имущества, находящегося в оперативном управлении органов управления городских округов и созданных ими учреждений (за исключением имущества муниципальных бюджетных и автономных учреждений)",{"v":0,"d":"0.00"},{"v":2,"d":"2.00"},{"v":-2,"d":"-2.00"}]
[null,"1 11 05074 04 0000 120","Доходы от сдачи в аренду имущества, составляющего казну городских округов (за исключением земельных участков)",{"v":735.9999999999999,"d":"736.00"},{"v":635,"d":"635.00"},{"v":100.99999999999989,"d":"101.00"}]
[null,"1 11 07000 00 0000 120","Платежи от государственных и муниципальных унитарных предприятий",{"v":0,"d":"0.00"},{"$f":"E53","v":{"v":0,"d":"0.00"}},{"v":0,"d":"0.00"}]
[null,"1 11 07014 04 0000 120","Доходы от перечисления части прибыли, остающейся после уплаты налогов и иных обязательных платежей муниципальных унитарных предприятий, созданных городскими округами",{"v":0,"d":"0.00"},{"v":0,"d":"0.00"},{"v":0,"d":"0.00"}]
[null,"1 12 00000 00 0000 000","ПЛАТЕЖИ ПРИ ПОЛЬЗОВАНИИ ПРИРОДНЫМИ РЕСУРСАМИ",{"v":1515,"d":"1515.00"},{"$f":"E55","v":{"v":1245,"d":"1,245.00"}},{"v":270,"d":"270.00"}]
[null,"1 12 01000 01 0000 120","Плата за негативное воздействие на окружающую среду",{"v":1515,"d":"1,515.00"},{"$f":"SUM(E56:E59)","v":{"v":1245,"d":"1,245.00"}},{"v":270,"d":"270.00"}]
[null,"1 12 01010 01 0000 120","Плата за выбросы загрязняющих веществ в атмосферный воздух стационарными объектами ",{"v":100,"d":"100.00"},{"v":105,"d":"105.00"},{"v":-5,"d":"-5.00"}]
[null,"1 12 01030 01 0000 120","Плата за сбросы загрязняющих веществ в водные объекты",{"v":424.3,"d":"424.30"},{"v":380,"d":"380.00"},{"v":44.30000000000001,"d":"44.30"}]
[null,"1 12 01041 01 0000 120","Плата за размещение отходов производства\nПлата за размещение отходов производства\n",{"v":976.6,"d":"976.60"},{"v":740,"d":"740.00"},{"v":236.60000000000002,"d":"236.60"}]
[null,"1 12 01042 01 0000 120\n\n","Плата за размещение твердых коммунальных отходов\n\n",{"v":14.1,"d":"14.10"},{"v":20,"d":"20.00"},{"v":-5.9,"d":"-5.90"}]
[null,"1 13 00000 00 0000 000","ДОХОДЫ ОТ ОКАЗАНИЯ ПЛАТНЫХ УСЛУГ (РАБОТ) И КОМПЕНСАЦИИ ЗАТРАТ ГОСУДАРСТВА",{"v":2571.9999999999995,"d":"2572.00"},{"$f":"E61+E63","v":{"v":2571.9999999999995,"d":"2,572.00"}},{"v":0,"d":"0.00"}]
[null,"1 13 01990 00 0000 130","Прочие доходы от оказания платных услуг (работ)",{"v":2466.2999999999997,"d":"2,466.30"},{"$f":"E62","v":{"v":2481.2999999999997,"d":"2,481.30"}},{"v":-15,"d":"-15.00"}]
[null,"1 13 01994 04 0000 130","Прочие доходы от оказания платных услуг (работ) получателями средств бюджетов городских округов",{"v":2466.2999999999997,"d":"2,466.30"},{"$f":"2481.6-0.3","v":{"v":2481.2999999999997,"d":"2,481.30"}},{"v":-15,"d":"-15.00"}]
[null,"1 13 02990 00 0000 130","Прочие доходы от компенсации затрат государства",{"v":105.7,"d":"105.70"},{"$f":"E64","v":{"v":90.7,"d":"90.70"}},{"v":15,"d":"15.00"}]
[null,"1 13 02994 04 0000 130","Прочие доходы от компенсации затрат бюджетов городских округов",{"v":105.7,"d":"105.70"},{"$f":"90.4+0.3","v":{"v":90.7,"d":"90.70"}},{"v":15,"d":"15.00"}]
[null,"1 14 00000 00 0000 000","ДОХОДЫ ОТ ПРОДАЖИ МАТЕРИАЛЬНЫХ И НЕМАТЕРИАЛЬНЫХ АКТИВОВ",{"v":0,"d":"0.00"},{"$f":"E68+E66","v":{"v":0,"d":"0.00"}},{"v":0,"d":"0.00"}]
[null,"1 14 02000 00 0000 000","Доходы от реализации имущества, находящегося в государственной и муниципальной собственности (за исключением движимого имущества бюджетных и автономных учреждений, а также имущества государственных и муниципальных унитарных предприятий, в том числе казенных)",{"v":0,"d":"0.00"},{"$f":"E67","v":{"v":0,"d":"0.00"}},{"v":0,"d":"0.00"}]
[null,"1 14 02043 04 0000 410","Доходы от реализации иного имущества, находящегося в собственности городских округов (за исключением имущества муниципальных бюджетных и автономных учреждений, а также имущества муниципальных унитарных предприятий, в том числе казенных), в части реализации основных средств по указанному имуществу",{"v":0,"d":"0.00"},{"v":0,"d":"0.00"},{"v":0,"d":"0.00"}]
[null,"1 14 06000 00 0000 000","Доходы от продажи земельных участков, находящихся в государственной и муниципальной собственности",{"v":0,"d":"0.00"},{"$f":"E69","v":{"v":0,"d":"0.00"}},{"v":0,"d":"0.00"}]
[null,"1 14 06012 04 0000 430","Доходы от продажи земельных участков, государственная собственность на которые не разграничена и которые расположены в границах городских округов",null,null,{"v":0,"d":"0.00"}]
[null,"1 16 00000 00 0000 000","ШТРАФЫ, САНКЦИИ, ВОЗМЕЩЕНИЕ УЩЕРБА",{"v":1388,"d":"1388.00"},{"$f":"E71+E74+E75+E76+E80+E81+E82+E83+E84+E85","v":{"v":938,"d":"938.00"}},{"v":450,"d":"450.00"}]
[null,"1 16 03000 00 0000 140","Денежные взыскания (штрафы) за нарушение законодательства о налогах и сборах",{"v":29.600000000000005,"d":"29.60"},{"$f":"SUM(E72:E73)","v":{"v":23.400000000000002,"d":"23.40"}},{"v":6.200000000000003,"d":"6.20"}]
[null,"1 16 03010 01 0000 140","Денежные взыскания (штрафы) за нарушение законодательства о налогах и сборах, предусмотренные статьями 116, 1191, 1192, пунктами 1 и 2 статьи 120, статьями 125, 126, 1261, 128, 129, 1291, 1294, 132, 133, 134, 135, 1351, 1352 Налогового кодекса Российской Федерации",{"v":29.500000000000004,"d":"29.50"},{"v":23.3,"d":"23.30"},{"v":6.200000000000003,"d":"6.20"}]
[null,"1 16 03030 01 0000 140","Денежные взыскания (штрафы) за административные правонарушения в области налогов и сборов, предусмотренные Кодексом Российской Федерации об административных правонарушениях предусмотренные Кодексом Российской Федерации об административных правонарушениях  ",{"v":0.1,"d":"0.10"},{"v":0.1,"d":"0.10"},{"v":0,"d":"0.00"}]
[null,"1 16 08010 01 0000 140","Денежные взыскания (штрафы) за административные правонарушения в области государственного регулирования производства и оборота этилового спирта, алкогольной, спиртосодержащей продукции",{"v":35,"d":"35.00"},{"v":36,"d":"36.00"},{"v":-1,"d":"-1.00"}]
[null,"1 16 21040 04 0000 140","Денежные взыскания (штрафы) и иные суммы, взыскиваемые с лиц, виновных в совершении преступлений, и в возмещение ущерба имуществу, зачисляемые в бюджеты городских округов",{"v":50,"d":"50.00"},{"v":30,"d":"30.00"},{"v":20,"d":"20.00"}]
[null,"1 16 25000 00 0000 140","Денежные взыскания (штрафы) за нарушение законодательства Российской Федерации о недрах, об особо охраняемых природных территориях, об охране и использовании животного мира, об экологической экспертизе, в области охраны окружающей среды, о рыболовстве и сохранении водных биологических ресурсов, земельного законодательства, лесного законодательства, водного законодательства",{"v":0,"d":"0.00"},{"v":23.7,"d":"23.70"},{"v":-23.7,"d":"-23.70"}]
[null,"1 16 25050 01 0000 140","Денежные взыскания (штрафы) за нарушение законодательства в области охраны окружающей среды",{"v":0,"d":"0.00"},{"v":9.8,"d":"9.80"},{"v":-9.8,"d":"-9.80"}]
[null,"1 16 25060 01 0000 140","Денежные взыскания (штрафы) за нарушение земельного законодательства",{"v":0,"d":"0.00"},{"v":4,"d":"4.00"},{"$f":"D78-E78","v":{"v":-4,"d":"-4.00"}}]
[null,"1 16 25084 04 0000 140","Денежные взыскания (штрафы) за нарушение водного законодательства, установленное на водных объектах, находящихся в собственности городских округов",{"v":0,"d":"0.00"},{"v":9.9,"d":"9.90"},{"v":-9.9,"d":"-9.90"}]
[null,"1 16 28000 01 0000 140","Денежные взыскания (штрафы) за нарушение законодательства в области обеспечения санитарно-эпидемиологического благополучия человека и законодательства в сфере защиты прав потребителей",{"v":337.5,"d":"337.50"},{"v":400,"d":"400.00"},{"v":-62.5,"d":"-62.50"}]
[null,"1 16 30030 01 0000 140","Прочие денежные взыскания (штрафы) за правонарушения в области дорожного движения",{"v":0,"d":"0.00"},{"v":98,"d":"98.00"},{"v":-98,"d":"-98.00"}]
[null,"1 16 33040 04 0000 140","Денежные взыскания (штрафы) за нарушение законодательства Российской Федерации о контрактной системе в сфере закупок товаров, работ, услуг для обеспечения государственных и муниципальных нужд для нужд городских округов",{"v":110.7,"d":"110.70"},{"v":87,"d":"87.00"},{"v":23.700000000000003,"d":"23.70"}]
[null,"1 16 43000 01 0000 140","Денежные взыскания (штрафы) за нарушение законодательства Российской Федерации об административных правонарушениях, предусмотренные статьей 20.25 Кодекса Российской Федерации об административных правонарушениях",{"v":0,"d":"0.00"},{"v":0,"d":"0.00"},{"v":0,"d":"0.00"}]
[null,"1 16 43000 01 0000 140","Денежные взыскания (штрафы) за нарушение законодательства Российской Федерации об административных правонарушениях, предусмотренные статьей 20.25 Кодекса Российской Федерации об административных правонарушениях ",{"v":15.3,"d":"15.30"},{"v":8.2,"d":"8.20"},{"v":7.100000000000001,"d":"7.10"}]
[null,"1 16 90000 00 0000 140","Прочие поступления от денежных взысканий (штрафов) и иных сумм в возмещение ущерба",{"v":809.9000000000001,"d":"809.90"},{"$f":"E86","v":{"v":231.7,"d":"231.70"}},{"v":578.2,"d":"578.20"}]
[null,"1 16 90040 04 0000 140","Прочие поступления от денежных взысканий (штрафов) и иных сумм в возмещение ущерба, зачисляемые в бюджеты городских округов",{"v":809.9000000000001,"d":"809.90"},{"v":231.7,"d":"231.70"},{"v":578.2,"d":"578.20"}]
[null,"2 00 00000 00 0000 000","БЕЗВОЗМЕЗДНЫЕ ПОСТУПЛЕНИЯ",{"v":341893.4587000001,"d":"341,893.46"},{"$f":"E88+E156","v":{"v":316700.10000000003,"d":"316,700.10"}},{"v":25193.35870000004,"d":"25,193.36"}]
[null,"2 02 00000 00 0000 000","БЕЗВОЗМЕЗДНЫЕ ПОСТУПЛЕНИЯ ОТ ДРУГИХ БЮДЖЕТОВ БЮДЖЕТНОЙ СИСТЕМЫ РОССИЙСКОЙ ФЕДЕРАЦИИ",{"v":320884.6587000001,"d":"320,884.66"},{"$f":"E89+E95+E132+E152","v":{"v":295791.30000000005,"d":"295,791.30"}},{"v":25093.35870000004,"d":"25,093.36"}]
[null,"2 02 10000 00 0000 151","Дотации бюджетам бюджетной системы Российской Федерации",{"v":81098.1,"d":"81,098.10"},{"$f":"E90+E93","v":{"v":78694.1,"d":"78,694.10"}},{"v":2404,"d":"2,404.00"}]
[null,"2 02 15001 00 0000 151","Дотации на выравнивание бюджетной обеспеченности",{"v":66410,"d":"66,410.0"},{"$f":"SUM(E91:E92)","v":{"v":66410,"d":"66,410.0"}},{"v":0,"d":"0.00"}]
[null,"2 02 15001 04 0000 151","Дотации бюджетам городских округов на выравнивание бюджетной обеспеченности",{"v":65918,"d":"65,918.0"},{"v":65918,"d":"65,918.0"},{"v":0,"d":"0.00"}]
[null,"2 02 15001 04 0000 151","Дотации  на выравнивание бюджетной обеспеченности поселений  на реализацию подпрограммы \"Создание условий для эффективного выполнения полномочий органами местного самоуправления муниципальных образований Магаданской области\" на 2015-2020 годы\" государственной программы Магаданской области \"Управление государственными финансами Магаданской области на 2015-2020 годы\"",{"v":492,"d":"492.00"},{"v":492,"d":"492.00"},{"v":0,"d":"0.00"}]
[null,"2 02 15002 00 0000 151","Дотации бюджетам на поддержку мер по обеспечению сбалансированности бюджетов",{"v":14688.1,"d":"14,688.10"},{"$f":"E94","v":{"v":12284.1,"d":"12,284.10"}},{"v":2404,"d":"2,404.00"}]
[null,"2 02 15002 04 0000 151","Дотации бюджетам городских округов на поддержку мер по обеспечению сбалансированности бюджетов",{"v":14688.1,"d":"14,688.10"},{"$f":"11342+942.1","v":{"v":12284.1,"d":"12,284.10"}},{"v":2404,"d":"2,404.00"}]
[null,"2 02 20000 00 0000 151","Субсидии бюджетам бюджетной системы Российской Федерации (межбюджетные субсидии)",{"v":124752.12870000002,"d":"124,752.13"},{"$f":"E96+E98+E100+E102","v":{"v":122699.50000000001,"d":"122,699.50"}},{"v":2052.628700000001,"d":"2,052.63"}]
[null,"2 02 25497 00 0000 151\n","Субсидии бюджетам на реализацию мероприятий по обеспечению жильем молодых семей\n",{"v":618.7,"d":"618.70"},{"$f":"E97","v":{"v":271.5,"d":"271.50"}},{"v":347.20000000000005,"d":"347.20"}]
[null,"2 02 25497 04 0000 151","Субсидии бюджетам городских округов на реализацию мероприятий по обеспечению жильем молодых семей",{"v":618.7,"d":"618.70"},{"v":271.5,"d":"271.50"},{"v":347.20000000000005,"d":"347.20"}]
[null,"2 02 25519 00 0000 151","Субсидия бюджетам на поддержку отрасли культуры",{"v":3.2967,"d":"3.30"},{"$f":"E99","v":{"v":3,"d":"3.00"}},{"v":0.29669999999999996,"d":"0.30"}]
[null,"2 02 25519 04 0000 151","Субсидия бюджетам городских округов на поддержку отрасли культуры",{"v":3.2967,"d":"3.30"},{"v":3,"d":"3.00"},{"v":0.29669999999999996,"d":"0.30"}]
[null,"2 02 25555 00 0000 151","Субсидии бюджетам на поддержку государственных программ субъектов Российской Федерации и муниципальных программ формирования современной городской среды",{"v":831.932,"d":"831.93"},{"$f":"E101","v":{"v":757.1,"d":"757.10"}},{"v":74.832,"d":"74.83"}]
[null,"2 02 25555 04 0000 151","Субсидии бюджетам городских округов на  поддержку государственных программ субъектов Российской Федерации  и муниципальных программ формирования современной городской среды",{"v":831.932,"d":"831.93"},{"v":757.1,"d":"757.10"},{"v":74.832,"d":"74.83"}]
[null,"2 02 29999 00 0000 151","Прочие субсидии",{"v":123298.20000000001,"d":"123,298.20"},{"$f":"E103","v":{"v":121667.90000000001,"d":"121,667.90"}},{"v":1630.300000000003,"d":"1,630.30"}]
[null,"2 02 29999 04 0000 151","Прочие субсидии бюджетам городских округов",{"v":123298.20000000001,"d":"123,298.20"},{"$f":"SUM(E104:E131)","v":{"v":121667.90000000001,"d":"121,667.90"}},{"v":1630.300000000003,"d":"1,630.30"}]
[null,"2 02 29999 04 0000 151","Субсидии на выравнивание  обеспеченности  городских округов  по реализации   расходных обязательств по оплате коммунальных услуг муниципальными учреждениями  и выплате заработной платы работникам муниципальных учреждений  на реализацию подпрограммы \"Создание условий для эффективного выполнения полномочий органами местного самоуправления муниципальных образований Магаданской области\" на 2015-2020 годы\" государственной программы Магаданской области \"Управление государственными финансами Магаданской области\" на 2015-2020 годы\" на 2018 год",{"v":90035,"d":"90,035.00"},{"v":90035,"d":"90,035.00"},{"v":0,"d":"0.00"}]
[null,"2 02 29999 04 0000 151","Субсидии   бюджетам городских округов для финансового обеспечения  решения вопросов местного значения поселений на реализацию подпрограммы \"Создание условий для эффективного выполнения полномочий органами местного самоуправления муниципальных образований Магаданской области\" на 2015-2020 годы\" государственной программы Магаданской области \"Управление государственными финансами Магаданской области\" на 2015-2020 годы\" на 2018 год",{"v":5048,"d":"5,048.00"},{"v":5048,"d":"5,048.00"},{"v":0,"d":"0.00"}]
[null,"2 02 29999 04 0000 151","Субсидии бюджетам городских округов, предоставляемых в рамках реализации подпрограммы \"Развитие государственной гражданской службы и муниципальной службы в Магаданской области\" на 2017-2021 годы\"  государственной  программы   Магаданской области \"Развитие системы государственного и муниципального управления и профилактика коррупции в Магаданской области\" на 2017-2021 годы\" на 2018 год",{"v":0,"d":"0.00"},{"v":0,"d":"0.00"},{"v":0,"d":"0.00"}]
[null,"2 02 29999 04 0000 151","Субсидии бюджетам городских округов, предоставляемых в рамках реализации подпрограммы \"Дополнительное профессиональное образование лиц, замещающих муниципальные должности в Магаданской области\" на 2017-2021 годы\"   государственной  программы  Магаданской области \"Развитие системы государственного и муниципального управления и профилактика коррупции в Магаданской области\" на 2017-2021 годы\" на 2018 год",{"v":0,"d":"0.00"},{"v":0,"d":"0.00"},{"v":0,"d":"0.00"}]
[null,"2 02 29999 04 0000 151","Субсидии бюджетам городских округов на реализацию подпрограммы \"Развитие водохозяйственного комплекса Магаданской области\" на 2014-2020 годы\" государственной программы Магаданской области \"Природные ресурсы и экология Магаданской области\" на 2014-2020 годы\" на 2017 год",{"v":0,"d":"0.00"},{"v":0,"d":"0.00"},{"v":0,"d":"0.00"}]
[null,"2 02 29999 04 0000 151","Субсидии бюджетам городских округов на реализацию мероприятий подпрограммы \"Развитие   библиотечного дела Магаданской области\" на 2014-2020 годы\" государственной программы Магаданской области \"Развитие  культуры  и туризма в Магаданской области\" на 2014-2020 годы\" на 2018 год",{"v":76,"d":"76.00"},{"v":76,"d":"76.00"},{"v":0,"d":"0.00"}]
[null,"2 02 29999 04 0000 151","Субсидии бюджетам городских округов на организацию отдыха и оздоровление детей в лагерях дневного пребывания в рамках подпрограммы \"Организация и обеспечение отдыха и оздоровления детей в Магаданской области\" на 2014-2020 годы\" государственной программы Магаданской области \"Развитие образования в Магаданской области\" на 2014-2020 годы\" на 2018 год",{"v":1180,"d":"1,180.00"},{"v":1180,"d":"1,180.00"},{"v":0,"d":"0.00"}]
[null,"2 02 29999 04 0000 151","Субсидии бюджетам городских округов на частичное возмещение расходов по присмотру и уходу за детьми с ограниченными возможностями здоровья, обучающимся в дошкольных образовательных организациях, в рамках реализации подпрограммы \"Повышение качества и доступности дошкольного образования в Магаданской области\" на 2014-2020 годы\" государственной программы Магаданской области \"Развитие образования в Магаданской области\" на 2014-2020 годы\" на 2018 год",{"v":49,"d":"49.00"},{"v":49,"d":"49.00"},{"v":0,"d":"0.00"}]
[null,"2 02 29999 04 0000 151","Субсидии бюджетам городских округов на совершенствование питания учащихся в общеобразовательных организациях в рамках подпрограммы \"Развитие общего образования в Магаданской области\" на 2014-2020 годы\" государственной программы Магаданской области \"Развитие образования в Магаданской области\" на 2014-2020 годы\" на 2018 год",{"v":620.5,"d":"620.50"},{"v":620.5,"d":"620.50"},{"v":0,"d":"0.00"}]
[null,"2 02 29999 04 0000 151","Субсидии бюджетам городских округов на реализацию государственной программы Магаданской области  \"Развитие системы обращения с отходами производства и потребления на территории Магаданской области\" на 2015-2020 годы\" на 2018 год",{"v":5632.9,"d":"5632.90"},{"$f":"3402+492.3","v":{"v":3894.3,"d":"3894.30"}},{"v":1738.5999999999995,"d":"1,738.60"}]
[null,"2 02 29999 04 0000 151","Субсидии бюджетам городских округов на организацию и проведение областных универсальных совместных ярмарок в рамках подпрограммы \"Развитие торговли на территории Магаданской области на 2014-2020 годы\" государственной программы Магаданской области \"Развитие сельского хозяйства Магаданской области\" на 2014-2020 годы\" на 2018 год",{"v":433.8,"d":"433.80"},{"v":365,"d":"365.00"},{"v":68.80000000000001,"d":"68.80"}]
[null,"2 02 29999 04 0000 151","Субсидии бюджетам городских округов на укрепление материально-технической базы муниципальных предприятий, муниципальных сельскохозяйственных предприятий, крестьянско-фермерских хозяйств, территориально соседских общин, родовых общин, малочисленных народов Севера, занятых традиционным природопользованием  в рамках государственной программы Магаданской области «Социально-экономическое и культурное развитие коренных малочисленных народов Севера, проживающих на территории Магаданской области» на 2014-2020 годы» на 2018 год",{"v":300,"d":"300.00"},{"v":300,"d":"300.00"},{"v":0,"d":"0.00"}]
[null,"2 02 29999 04 0000 151","Субсидии  бюджетам городских округов на проведение мероприятий по благоустройству в рамках государственной программы Магаданской области \"Обеспечение качественными жилищно-коммунальными услугами и комфортными условиями проживания населения Магаданской области на  2014-2020 годы\" на 2018 год",{"v":1082.6,"d":"1,082.60"},{"v":1082.6,"d":"1,082.60"},{"v":0,"d":"0.00"}]
[null,"2 02 29999 04 0000 151","Субсидии  бюджетам городских округов на расселение наиболее неблагоприятных для проживания населенных пунктов Магаданской области в рамках государственной программы Магаданской области \"Обеспечение качественными жилищно-коммунальными услугами и комфортными условиями проживания населения Магаданской области на  2014-2020 годы\" на 2017 год",{"v":0,"d":"0.00"},{"v":0,"d":"0.00"},{"v":0,"d":"0.00"}]
[null,"2 02 29999 04 0000 151","Субсидии бюджетам городских округов на организацию обучения на условиях целевой контрактной подготовки молодежи из числа коренных малочисленных народов Севера в высших учебных заведениях и средних профессиональных образовательных организациях на территории Магаданской области и за ее пределами  в рамках государственной программы Магаданской области \"Социально-экономическое и культурное развитие коренных малочисленных народов Севера, проживающих на территории Магаданской области\" на 2014-2020 годы\" на 2018 год",{"v":110.5,"d":"110.50"},{"v":181.5,"d":"181.50"},{"v":-71,"d":"-71.00"}]
[null,"2 02 29999 04 0000 151","Субсидии бюджетам городских округов на питания (завтрак или полдник) детей из многодетных семей, обучающихся в общеобразовательных организациях, в рамках подпрограммы \"Развитие общего образования в Магаданской области\" на 2014-2020 годы\" государственной программы Магаданской области \"Развитие образования в Магаданской области\" на 2014-2020 годы\" на 2018 год",{"v":341.8,"d":"341.80"},{"v":153.7,"d":"153.70"},{"v":188.10000000000002,"d":"188.10"}]
[null,"2 02 29999 04 0000 151","Субсидии бюджетам городских округов на осуществление мероприятий по подготовке к осенне-зимнему отопительному периоду в рамках реализации государственной программы Магаданской области «Содействие муниципальным образованиям Магаданской области в реализации муниципальных программ комплексного развития коммунальной инфраструктуры» на 2014-2020 годы» на 2018 год",{"v":14219.1,"d":"14,219.10"},{"$f":"11100+3119.1","v":{"v":14219.1,"d":"14,219.10"}},{"v":0,"d":"0.00"}]
[null,"2 02 29999 04 0000 151","Субсидии бюджетам городских округов на поддержку государственных программ субъектов Российской Федерации и муниципальных программ формирования современной городской среды в рамках реализации государственной программы Магаданской области «Обеспечение качественными жилищно-коммунальными услугами и комфортными условиями проживания населения Магаданской области» на 2014-2020 годы» на 2018 год",{"v":0,"d":"0.00"},{"v":74.8,"d":"74.80"},{"v":-74.8,"d":"-74.80"}]
[null,"2 02 29999 04 0000 151","Субсидии бюджетам городских округов, предоставляемых в рамках реализации подпрограммы \n«Развитие библиотечного дела Магаданской области» на 2014-2020 годы» государственной программы Магаданской области «Развитие культуры и туризма Магаданской области» на 2014-2020 годы» на 2018 год",{"v":0,"d":"0.00"},{"v":0.3,"d":"0.30"},{"v":-0.3,"d":"-0.30"}]
[null,"2 02 29999 04 0000 151","Субсидии бюджетам городских округов на осуществление мероприятий по реконструкции и капитальному ремонту общеобразовательных организаций в рамках подпрограммы «Развитие общего образования в Магаданской области» на 2014-2020 годы» государственной программы Магаданской области «Развитие образования в Магаданской области» на 2014-2020 годы» на 2017 год",{"v":0,"d":"0.00"},{"v":0,"d":"0.00"},{"v":0,"d":"0.00"}]
[null,"2 02 29999 04 0000 151","Субсидии на мероприятия подпрограммы \"Обеспечение жильем молодых семей\" федеральной целевой программы \"Жилище\" на 2015 - 2020 годы",{"v":0,"d":"0.00"},{"v":0,"d":"0.00"},{"v":0,"d":"0.00"}]
[null,"2 02 29999 04 0000 151","Субсидии бюджетам городских округов на частичное возмещение расходов по присмотру и уходу за детьми, обучающимися в образовательных организациях, реализующих образовательные программы дошкольного образования, родители которых относятся к коренным малочисленным народам Севера  в рамках государственной программы Магаданской области \"Социально-экономическое и культурное развитие коренных малочисленных народов Севера, проживающих на территории Магаданской области\" на 2014-2020 годы\" на 2018 год",{"v":787.2,"d":"787.20"},{"v":787.2,"d":"787.20"},{"v":0,"d":"0.00"}]
[null,"2 02 29999 04 0000 151","Субсидии бюджетам городских округов на организацию и проведение гастрономического фестиваля \"Колымское братство\" на 2018 год",{"v":135.2,"d":"135.20"},{"v":135.2,"d":"135.20"},{"v":0,"d":"0.00"}]
[null,"2 02 29999 04 0000 151","Субсидии бюджетам городских округов на проведение комплексных кадастровых работ на территории Магаданской области в рамках государственной программы Магаданской области \"Управление государственным имуществом Магаданской области\" на 2016 - 2020 годы\"  на 2018 год",{"v":224,"d":"224.00"},{"v":224,"d":"224.00"},{"v":0,"d":"0.00"}]
[null,"2 02 29999 04 0000 151","Субсидии на мероприятия подпрограммы \"Обеспечение жильем молодых семей\" федеральной целевой программы \"Жилище\" на 2015 - 2020 годы  на 2018 год",{"v":0,"d":"0.00"},{"v":347.2,"d":"347.20"},{"v":-347.2,"d":"-347.20"}]
[null,"2 02 29999 04 0000 151","Субсидии бюджетам городских округов на реализацию подпрограммы \"Обеспечение процесса физической подготовки и спорта\" на 2014-2020 годы\" государственной программы Магаданской области \"Развитие физической культуры и спорта в Магаданской области\" на 2014-2020 годы\" на 2018 год",{"v":400,"d":"400.00"},{"v":400,"d":"400.00"},{"v":0,"d":"0.00"}]
[null,"2 02 29999 04 0000 151","Субсидии бюджетам городских округов на возмещение расходов по присмотру и уходу за детьми-инвалидами, детьми-сиротами и детьми, оставшимися без попечения родителей, а также за детьми с туберкулезной интоксикацией, обучающимися в муниципальных образовательных организациях, реализующих образовательную программу дошкольного образования, расположенных на территории Магаданской области, в рамках подпрограммы «Повышение качества и доступности дошкольного образования в Магаданской области» на 2014-2020 годы» государственной программы Магаданской области «Развитие образования в Магаданской области» на 2014-2020 годы» на 2018 год\n",{"v":94.5,"d":"94.50"},{"v":94.5,"d":"94.50"},{"v":0,"d":"0.00"}]
[null,"2 02 29999 04 0000 151","Субсидии бюджетам городских округов на осуществление мероприятий по реконструкции и капитальному ремонту общеобразовательных организаций в рамках подпрограммы \"Развитие общего образования в Магаданской области\" на 2014-2020 годы\" государственной программы Магаданской области \"Развитие образования в Магаданской области\" на 2014-2020 годы\" на 2018 год",{"v":2400,"d":"2,400.00"},{"v":2400,"d":"2,400.00"},{"v":0,"d":"0.00"}]
[null,"2 02 29999 04 0000 151","Субсидии бюджетам городских округов на поддержку преподавания этнических языков (корякский, эвенский, юкагирский и якутский)",{"v":40,"d":"40.00"},{"$f":"E134+E146+E150+E148","v":{"v":87412.49999999999,"d":"87,412.50"}},{"v":-87372.49999999999,"d":"-87,372.50"}]
[null,"2 02 29999 04 0000 151","Субсидии бюджетам городских округов на комплексные меры по гармонизации межэтнических и межкультурных отношений, укреплению толерантности на территории Среднеканского городского округа на 2016-2018 годы",{"v":88.1,"d":"88.10"}]
[null,"2 02 30000 00 0000 151","Субвенции бюджетам бюджетной системы Российской Федерации",{"v":108049.23000000001,"d":"108,049.23"},{"$f":"E135","v":{"v":86337.9,"d":"86,337.90"}},{"v":21711.330000000016,"d":"21,711.33"}]
[null,"2 02 30024 00 0000 151","Субвенции местным бюджетам на выполнение передаваемых полномочий субъектов Российской Федерации",{"v":106850.5,"d":"106,850.50"},{"$f":"SUM(E136:E145)","v":{"v":86337.9,"d":"86,337.90"}},{"v":20512.600000000006,"d":"20,512.60"}]
[null,"2 02 30024 04 0000 151","Субвенции бюджетам городских округов на выполнение передаваемых полномочий субъектов Российской Федерации",{"v":106850.5,"d":"106,850.50"},{"v":446.5,"d":"446.50"},{"v":106404,"d":"106,404.00"}]
[null,"2 02 30024 04 0000 151","Субвенции  бюджетам городских округов на осуществление государственных полномочий по выплате\nвознаграждения за выполнение функций классного руководителя педагогическим работникам муниципальных образовательных организаций в рамках подпрограммы \"Управление развитием отрасли образования в Магаданской области\" на 2014-2020 годы\" государственной программы Магаданской области \"Развитие образования в Магаданской области\" на 2014-2020 годы\" на 2018 год",{"v":446.5,"d":"446.50"},{"v":45347.5,"d":"45,347.50"},{"v":-44901,"d":"-44,901.00"}]
[null,"2 02 30024 04 0000 151","Субвенции  бюджетам городских округов на финансовое обеспечение муниципальных общеобразовательных организаций в части реализации ими государственного стандарта общего образования в рамках подпрограммы \"Управление развитием отрасли образования в Магаданской области\" на 2014-2020 годы\" государственной программы Магаданской области \"Развитие образования в Магаданской области\" на 2014-2020 годы\" на 2018 год",{"v":52399.4,"d":"52,399.40"},{"v":2787.6,"d":"2,787.60"},{"v":49611.8,"d":"49,611.80"}]
[null,"2 02 30024 04 0000 151","Субвенции бюджетам городских округов на осуществление государственных полномочий по предоставлению дополнительных мер социальной поддержки  педагогическим работникам муниципальных образовательных организаций в рамках подпрограммы \"Управление развитием отрасли образования в Магаданской области\" на 2014-2020 годы\" государственной программы Магаданской области \"Развитие образования в Магаданской области\" на 2014-2020 годы\" на 2018 год",{"v":2787.6,"d":"2,787.60"},{"v":1404.1,"d":"1,404.10"},{"v":1383.5,"d":"1,383.50"}]
[null,"2 02 30024 04 0000 151","Субвенции  бюджетам   городских округов на осуществление государственных полномочий по предоставлению дополнительных мер социальной поддержки  работникам муниципальных образовательных организаций в рамках подпрограммы \"Управление развитием отрасли образования в Магаданской области\" на 2014-2020 годы\" государственной программы Магаданской области \"Развитие образования в Магаданской области\" на 2014-2020 годы\" на 2018 год",{"v":1404.1,"d":"1,404.10"},{"v":1143.1,"d":"1,143.10"},{"v":261,"d":"261.00"}]
[null,"2 02 30024 04 0000 151","Субвенции бюджетам городских округов на  осуществление государственных полномочий по созданию и организации  деятельности комиссий по делам несовершеннолетних  и защите их прав в рамках подпрограммы \"Управление развитием отрасли образования в Магаданской области\" на 2014-2020 годы\" государственной программы Магаданской области \"Развитие образования в Магаданской области\" на 2014-2020 годы\" на 2018 год",{"v":538.2,"d":"538.20"},{"v":776.1,"d":"776.10"},{"v":-237.89999999999998,"d":"-237.90"}]
[null,"2 02 30024 04 0000 151","Субвенции бюджетам городских округов на реализацию Закона Магаданской области от 28 декабря 2009 года № 1220-ОЗ \"О наделении органов местного самоуправления государственными полномочиями Магаданской области по регистрации и учету граждан, имеющих право на получение социальных выплат для приобретения жилья в связи с переселением из районов Крайнего Севера и приравненных к ним местностей\"  на 2018 год",{"v":776.1,"d":"776.10"},{"v":3096.4,"d":"3,096.40"},{"v":-2320.3,"d":"-2,320.30"}]
[null,"2 02 30024 04 0000 151","Субвенции бюджетам городских округов на осуществление государственных полномочий по организации\nи осуществлению деятельности органов опеки и попечительства на 2018 год",{"v":3096.4,"d":"3,096.40"},{"v":29278.5,"d":"29,278.50"},{"$f":"D143-E143","v":{"v":-26182.1,"d":"-26,182.10"}}]
[null,"2 02 30024 04 0000 151","Субвенции бюджетам городских округов на финансовое обеспечение муниципальных дошкольных организаций в рамках подпрограммы \"Управление  развитием отрасли образования в Магаданской области\" на 2014-2020 годы\" государственной программы Магаданской области \"Развитие образования в Магаданской области\" на 2014-2020 годы\" на 2018 год",{"v":43481.8,"d":"43,481.80"},{"v":1082.1,"d":"1,082.10"},{"v":42399.700000000004,"d":"42,399.70"}]
[null,"2 02 30024 04 0000 151","Субвенции бюджетам городских округов  на осуществление государственных полномочий по созданию и организации деятельности административных комиссий в рамках реализации ведомственной целевой программы «Развитие государственно-правовых институтов Магаданской области» на 2016-2017 годы» на 2018 год",{"v":944.4,"d":"944.40"},{"v":976,"d":"976.00"},{"v":-31.600000000000023,"d":"-31.60"}]
[null,"2 02 30024 04 0000 151","Субвенции бюджетам городских округов на осуществление государственных полномочий по отлову и содержанию безнадзорных животных на 2018 год",{"v":976,"d":"976.00"},{"$f":"E147","v":{"v":406.7,"d":"406.70"}},{"v":569.3,"d":"569.30"}]
[null,"2 02 35118 00 0000 151","Субвенции бюджетам на осуществление первичного воинского учета на территориях, где отсутствуют военные комиссариаты",{"v":418.6,"d":"418.60"},{"v":406.7,"d":"406.70"},{"v":11.900000000000034,"d":"11.90"}]
[null,"2 02 35118 04 0000 151","Субвенции бюджетам городских округов на осуществление первичного воинского учета на территориях, где отсутствуют военные комиссариаты",{"v":418.6,"d":"418.60"},{"$f":"E149","v":{"v":112.2,"d":"112.20"}},{"v":306.40000000000003,"d":"306.40"}]
[null,"2 02 35120 00 0000 151","Субвенции бюджетам на составление (изменение) списков кандидатов в присяжные заседатели федеральных судов общей юрисдикции в Российской Федерации",88.03,{"v":112.2,"d":"112.20"},-24.17]
[null,"2 02 35120 04 0000 151","Субвенции бюджетам городских округов на осуществление полномочий по составлению (изменению) списков кандидатов в присяжные заседатели федеральных судов общей юрисдикции в Российской Федерации",88.03,{"$f":"E151","v":{"v":555.7,"d":"555.70"}},{"v":-467.6700000000001,"d":"-467.67"}]
[null,"2 02 35930 00 0000 151","Субвенции бюджетам на государственную регистрацию актов гражданского состояния",{"v":692.1,"d":"692.10"},{"v":555.7,"d":"555.70"},{"v":136.39999999999998,"d":"136.40"}]
[null,"2 02 35930 04 0000 151","Субвенции бюджетам городских округов на государственную регистрацию актов гражданского состояния",{"v":692.1,"d":"692.10"},{"$f":"E153","v":{"v":6985.2,"d":"6,985.20"}},{"v":-6293.099999999999,"d":"-6,293.10"}]
[null,"2 02 40000 00 0000 151","Иные межбюджетные трансферты",{"v":6985.2,"d":"6,985.20"},{"$f":"E154","v":{"v":6985.2,"d":"6,985.20"}},{"v":0,"d":"0.00"}]
[null,"2 02 49999 00 0000 151","Прочие межбюджетные  трансферты, передаваемые бюджетам ",{"v":6985.2,"d":"6,985.20"},{"$f":"SUM(E155:E155)","v":{"v":6985.2,"d":"6,985.20"}},{"v":0,"d":"0.00"}]
[null,"2 02 49999 04 0000 151","Прочие межбюджетные трансферты, передаваемые бюджетам городских округов",{"v":6985.2,"d":"6,985.20"},{"$f":"6203+782.2","v":{"v":6985.2,"d":"6,985.20"}},{"v":0,"d":"0.00"}]
[null,"2 02 49999 04 0000 151","Прочие межбюджетные трансферты бюджетам городских округов на возмещение расходов на предоставление мер социальной поддержки по оплате жилых помещений и коммунальных услуг отдельных категорий граждан, проживающих на территории Магаданской области, на 2018 год",{"v":6985.2,"d":"6,985.20"},{"$f":"E157","v":{"v":20908.8,"d":"20,908.80"}},{"v":-13923.599999999999,"d":"-13,923.60"}]
[null,"2 07 04000 04 0000 180","Прочие безвозмездные поступления в бюджеты городских округов",{"v":21008.8,"d":"21,008.80"},{"$f":"E158","v":{"v":20908.8,"d":"20,908.80"}},{"v":100,"d":"100.00"}]
[null,"2 07 04050 04 0000 180","Прочие безвозмездные поступления в бюджеты городских округов",{"v":21008.8,"d":"21,008.80"},{"$f":"20000+385.8+393+70+60","v":{"v":20908.8,"d":"20,908.80"}},{"v":100,"d":"100.00"}]